bitfinex-derivatives/quotes_SOLF0:USTF0_20251023
["timestamp","ask_amount","ask_price","bid_price","bid_amount"]
[1761234178493,2.71534615,191.94,191.8,2.86]
[1761234178798,7.55907553,191.94,191.8,2.86]
[1761234179796,7.55907553,191.94,191.83,2.79]
[1761234180096,4.6894,191.89,191.83,2.79]
[1761234180292,7.55907553,191.94,191.8,2.71534615]
[1761234180601,4.84372938,191.92,191.8,5.50534615]
[1761234181193,4.6899,191.87,191.8,10.19654615]
[1761234181395,4.84372938,191.91,191.8,2.79]
[1761234181598,4.84372938,191.94,191.82,2.79]
[1761234181905,4.84372938,191.95,191.84,2.79]
[1761234182597,4.6893,191.89,191.84,2.79]
[1761234182991,4.84372938,191.95,191.84,5.50534615]
[1761234183192,4.6887,191.91,191.85,2.79]
[1761234183993,7.55907553,191.97,191.82,2.79]
[1761234183994,4.6891,191.9,191.82,2.79]
[1761234184199,2.71534615,191.94,191.82,2.79]
[1761234184403,2.71534615,191.94,191.83,2.79]
[1761234184997,7.55907553,191.94,191.81,2.71534615]
[1761234185197,2.71534615,191.91,191.8,2.79]
[1761234185604,7.55907553,191.91,191.8,2.79]
[1761234186398,4.6901,191.86,191.8,2.79]
[1761234186802,4.84372938,191.92,191.8,2.79]
[1761234186803,1.73912467,191.87,191.8,2.79]
[1761234187402,1.73912467,191.85,191.77,2.79]
[1761234187608,1.73912467,191.83,191.77,2.79]
[1761234187803,1.73912467,191.83,191.74,4.52912467]
[1761234188004,4.84372938,191.88,191.74,4.52912467]
[1761234188205,1.73912467,191.82,191.75,2.79]
[1761234188505,4.84372938,191.88,191.75,2.79]
[1761234188707,1.73912467,191.83,191.75,2.79]
[1761234188902,1.73912467,191.83,191.73,4.693]
[1761234188903,4.84372938,191.89,191.8,1.73912467]
[1761234189107,1.73912467,191.91,191.82,1.73912467]
[1761234189308,1.73912467,191.91,191.83,2.79]
[1761234189617,6.42792467,191.91,191.83,2.79]
[1761234190310,6.42792467,191.91,191.83,4.6905]
[1761234190513,6.42792467,191.91,191.84,2.79]
[1761234190713,1.73912467,191.91,191.84,2.79]
[1761234191801,1.73912467,191.91,191.85,2.79]
[1761234193210,4.6886,191.92,191.86,2.79]
[1761234193912,1.73912467,191.93,191.86,2.79]
[1761234195205,44.08,191.97,191.83,7.4806]
[1761234195206,1.73912467,191.89,191.83,7.4806]
[1761234195411,1.73912467,191.89,191.84,2.79]
[1761234196817,4.6891,191.9,191.84,2.79]
[1761234197125,6.42822467,191.9,191.84,2.79]
[1761234197313,1.73912467,191.88,191.8,2.79]
[1761234198308,1.73912467,191.86,191.8,2.79]
[1761234198503,1.73912467,191.86,191.81,4.61152818]
[1761234198709,1.73912467,191.86,191.82,7.40152818]
[1761234199014,4.6903,191.85,191.83,4.61152818]
[1761234199213,4.6903,191.85,191.82,2.79]
[1761234199914,4.6903,191.85,191.83,4.6131622]
[1761234200110,4.6903,191.85,191.82,2.79]
[1761234200311,4.6903,191.85,191.83,4.61324051]
[1761234200505,4.6903,191.85,191.82,2.79]
[1761234200711,4.6903,191.85,191.83,4.61446564]
[1761234201008,4.6903,191.85,191.82,2.79]
[1761234201208,4.6903,191.85,191.83,4.61472709]
[1761234201408,4.6903,191.85,191.82,2.79]
[1761234201608,1.73912467,191.86,191.83,4.61621327]
[1761234201806,1.73912467,191.86,191.82,2.79]
[1761234202010,1.73912467,191.86,191.83,4.61617747]
[1761234202217,1.73912467,191.86,191.82,2.79]
[1761234202419,1.73912467,191.86,191.83,4.61569889]
[1761234202614,4.6903,191.85,191.82,2.79]
[1761234203613,4.6903,191.85,191.79,2.79]
[1761234203815,4.6903,191.85,191.8,4.61322298]
[1761234204018,4.6897,191.87,191.82,2.79]
[1761234204212,1.73912467,191.9,191.84,2.79]
[1761234204418,1.73912467,191.9,191.85,7.40322298]
[1761234204718,1.73912467,191.9,191.82,4.52912467]
[1761234204920,1.73912467,191.9,191.83,4.61140538]
[1761234205114,1.73912467,191.9,191.82,4.52912467]
[1761234205115,4.6898,191.87,191.84,4.61140538]
[1761234205322,4.84372938,191.99,191.87,2.79]
[1761234205624,4.84372938,191.99,191.78,4.7352075]
[1761234205625,1.73912467,191.95,191.88,7.40140538]
[1761234205923,1.73912467,191.95,191.89,4.61140538]
[1761234206114,4.6883,191.93,191.88,1.73912467]
[1761234206314,4.6883,191.93,191.9,2.84]
[1761234208719,4.6883,191.93,191.88,4.57912467]
[1761234208921,4.6883,191.93,191.89,7.39254844]
[1761234209118,4.6883,191.93,191.9,4.61254844]
[1761234209316,4.6883,191.93,191.89,2.78]
[1761234209516,4.6883,191.93,191.9,4.61227298]
[1761234209721,4.6883,191.93,191.89,2.78]
[1761234209924,4.6886,191.92,191.9,4.61227407]
[1761234210116,4.6886,191.92,191.85,7.47]
[1761234210117,1.73912467,191.95,191.85,2.78]
[1761234210427,1.73912467,191.95,191.86,6.35223614]
[1761234210720,4.6891,191.9,191.87,7.39311147]
[1761234210920,4.6891,191.9,191.88,4.61311147]
[1761234211228,4.6891,191.9,191.87,2.78]
[1761234211420,4.6891,191.9,191.88,4.61397806]
[1761234211621,4.6891,191.9,191.87,2.78]
[1761234211924,4.6891,191.9,191.86,1.73912467]
[1761234212128,4.6893,191.89,191.87,4.61538443]
[1761234212324,4.6893,191.89,191.84,1.73912467]
[1761234212524,4.6893,191.89,191.85,7.39583122]
[1761234212713,4.6893,191.89,191.86,4.61583122]
[1761234212917,4.6893,191.89,191.87,4.61583122]
[1761234213117,4.6893,191.89,191.85,2.78]
[1761234213326,4.6893,191.89,191.86,4.61630605]
[1761234213527,4.6893,191.89,191.87,4.61630605]
[1761234213825,4.6893,191.89,191.85,2.78]
[1761234214026,4.6893,191.89,191.86,7.39623231]
[1761234214226,4.6893,191.89,191.87,4.61623231]
[1761234214424,4.6893,191.89,191.86,2.78]
[1761234214725,4.6893,191.89,191.87,4.61678255]
[1761234214920,4.6893,191.89,191.86,2.78]
[1761234215121,4.6893,191.89,191.87,4.61690241]
[1761234215314,4.6893,191.89,191.86,2.78]
[1761234215518,4.6893,191.89,191.87,4.61723743]
[1761234215718,1.73912467,191.95,191.88,4.61761825]
[1761234215916,1.73912467,191.95,191.89,4.61761825]
[1761234216115,1.73912467,191.95,191.86,4.51912467]
[1761234216318,4.6886,191.92,191.87,4.61696166]
[1761234216517,4.6886,191.92,191.88,7.39696166]
[1761234216721,4.6886,191.92,191.89,4.61696166]
[1761234216920,4.6886,191.92,191.88,2.78]
[1761234217126,4.6888,191.91,191.89,4.61715164]
[1761234217429,4.6888,191.91,191.88,2.78]
[1761234217630,4.6888,191.91,191.89,4.61875226]
[1761234217931,4.6888,191.91,191.88,2.78]
[1761234218131,4.6888,191.91,191.89,4.6192634]
[1761234218430,4.6888,191.91,191.87,2.78]
[1761234218727,4.6888,191.91,191.89,2.78]
[1761234219323,4.6888,191.91,191.9,4.62023192]
[1761234220227,1.73912467,191.94,191.9,4.62023192]
[1761234220228,4.6882,191.94,191.9,4.62023192]
[1761234220425,1.73912467,191.96,191.91,7.40023192]
[1761234220624,4.6886,191.92,191.87,1.73912467]
[1761234220824,1.73912467,191.94,191.88,4.6214777]
[1761234221026,1.73912467,191.94,191.89,4.6214777]
[1761234221228,1.73912467,191.94,191.9,4.6214777]
[1761234221526,1.73912467,191.92,191.86,2.78]
[1761234221728,1.73912467,191.92,191.87,4.62528189]
[1761234221931,1.73912467,191.92,191.88,4.62528189]
[1761234222231,4.6896,191.88,191.84,2.78]
[1761234222433,4.6896,191.88,191.8,4.7352075]
[1761234222434,1.73912467,191.88,191.85,4.6287578]
[1761234222629,4.6901,191.86,191.81,1.73912467]
[1761234222829,4.6901,191.86,191.83,2.78]
[1761234223024,4.6901,191.86,191.84,4.63165452]
[1761234223220,4.6901,191.86,191.85,4.63332419]
[1761234223221,4.6899,191.86,191.85,4.63332419]
[1761234223425,1.73912467,191.87,191.83,2.78]
[1761234223630,1.73912467,191.85,191.84,4.63380725]
[1761234224930,6.42942467,191.85,191.84,4.63380725]
[1761234225728,6.42942467,191.85,191.84,3.85560622]
[1761234225928,1.73912467,191.85,191.79,2.78]
[1761234226130,1.73912467,191.82,191.74,2.78]
[1761234226335,1.73912467,191.82,191.75,2.78]
[1761234226635,1.73912467,191.8,191.75,2.78]
[1761234227030,4.6918,191.79,191.75,2.78]
[1761234227223,1.73912467,191.8,191.75,2.78]
[1761234227427,1.73912467,191.8,191.71,2.78]
[1761234227829,4.6923,191.77,191.72,2.78]
[1761234228832,44.14,191.83,191.73,2.78]
[1761234229037,1.73912467,191.81,191.73,2.78]
[1761234229529,1.73912467,191.79,191.73,2.78]
[1761234230236,1.73912467,191.77,191.73,2.78]
[1761234230737,1.73912467,191.75,191.69,106.22647379]
[1761234231031,1.73912467,191.75,191.69,2.78]
[1761234231435,4.6931,191.73,191.69,2.78]
[1761234231633,1.73912467,191.71,191.64,2.78]
[1761234231933,1.73912467,191.66,191.6,2.78]
[1761234232136,1.73912467,191.62,191.55,2.78]
[1761234232940,1.73912467,191.6,191.55,2.78]
[1761234234436,1.73912467,191.58,191.55,2.78]
[1761234234841,4.6961,191.61,191.55,2.78]
[1761234236135,8.69264232,191.64,191.55,2.78]
[1761234236734,3.99714232,191.64,191.55,2.78]
[1761234237938,4.6958,191.62,191.55,2.78]
[1761234238135,3.99714232,191.68,191.55,2.78]
[1761234238334,44.16,191.67,191.55,2.78]
[1761234238940,4.6953,191.64,191.55,2.78]
[1761234239336,44.16,191.69,191.55,2.78]
[1761234239543,44.16,191.69,191.57,2.71]
[1761234239744,3.99714232,191.7,191.57,2.71]
[1761234239934,44.16,191.7,191.57,2.71]
[1761234240133,4.6946,191.67,191.57,4.6968]
[1761234240338,44.16,191.7,191.58,2.71]
[1761234240840,3.99714232,191.64,191.54,2.71]
[1761234241539,4.6963,191.61,191.54,2.71]
[1761234241744,3.99714232,191.68,191.54,2.71]
[1761234242158,4.6955,191.64,191.54,2.71]
[1761234242338,3.99714232,191.72,191.54,2.71]
[1761234242539,20.12,191.71,191.54,2.71]
[1761234242843,4.6948,191.67,191.58,2.71]
[1761234243446,15.64,191.76,191.58,2.71]
[1761234243447,3.99714232,191.76,191.58,2.71]
[1761234243646,32.9,191.75,191.58,2.71]
[1761234243842,4.6943,191.69,191.59,4.6965]
[1761234244144,3.99714232,191.72,191.6,2.71]
[1761234245237,4.6946,191.68,191.6,2.71]
[1761234246154,48.17714232,191.72,191.56,2.71]
[1761234246750,3.99714232,191.68,191.52,2.71]
[1761234247043,3.99714232,191.64,191.52,2.71]
[1761234247249,44.18,191.63,191.52,2.71]
[1761234248047,4.6968,191.58,191.52,2.71]
[1761234249445,4.6972,191.57,191.52,2.71]
[1761234249655,6.5801322,191.62,191.47,2.71]
[1761234249849,22.2201322,191.62,191.4,2.71]
[1761234250044,4.6991,191.49,191.4,2.71]
[1761234250346,44.18,191.53,191.4,2.71]
[1761234250551,44.18,191.54,191.4,2.71]
[1761234251441,44.18,191.54,191.42,2.71]
[1761234252041,4.6995,191.47,191.42,2.71]
[1761234253046,4.6999,191.46,191.42,2.71]
[1761234253247,6.5801322,191.5,191.38,2.71]
[1761234254041,44.18,191.49,191.38,2.71]
[1761234254852,44.18,191.49,191.39,2.71]
[1761234255256,44.18,191.49,191.35,167.59321675]
[1761234255954,44.18,191.49,191.35,2.71]
[1761234256157,6.5801322,191.46,191.35,2.71]
[1761234256356,4.7009,191.41,191.35,2.71]
[1761234256752,6.5801322,191.46,191.25,62.0]
[1761234256957,4.7014,191.39,191.29,2.71]
[1761234257144,39.68,191.4,191.29,2.71]
[1761234257546,4.7019,191.37,191.29,2.71]
[1761234257746,39.68,191.4,191.29,2.71]
[1761234258050,39.68,191.4,191.21,7.4157]
[1761234258051,4.7031,191.33,191.21,7.4157]
[1761234258252,4.7031,191.33,191.22,2.71]
[1761234258458,6.5801322,191.35,191.22,2.71]
[1761234259156,6.5801322,191.35,191.12,2.71]
[1761234259458,6.5801322,191.33,191.15,2.71]
[1761234259659,6.5801322,191.29,191.15,2.71]
[1761234259852,4.7054,191.23,191.15,2.71]
[1761234260454,4.7048,191.26,191.15,2.71]
[1761234260651,13.84,191.28,191.15,2.71]
[1761234261251,6.5801322,191.26,191.15,2.71]
[1761234262061,44.22,191.25,191.15,2.71]
[1761234262358,4.7051,191.24,191.15,2.71]
[1761234262664,44.22,191.28,191.15,2.71]
[1761234262965,44.22,191.28,191.11,2.71]
[1761234263260,6.5801322,191.25,191.11,2.71]
[1761234264162,6.5801322,191.21,191.05,2.71]
[1761234264554,4.7071,191.16,191.05,2.71]
[1761234264860,6.5801322,191.25,191.05,2.71]
[1761234265052,9.04,191.24,191.05,2.71]
[1761234265252,12.86,191.24,191.1,2.71]
[1761234265855,17.5653,191.24,191.11,2.67]
[1761234266056,22.94,191.26,191.11,2.67]
[1761234266256,26.38,191.28,191.11,2.67]
[1761234266559,0.15208,191.26,191.12,2.67]
[1761234267971,0.15208,191.26,191.2,4.706]
[1761234268157,0.15208,191.26,191.21,2.67]
[1761234269964,150.46,191.37,191.22,2.75]
[1761234270460,6.5801322,191.39,191.22,2.75]
[1761234271255,6.5801322,191.39,191.14,73.2293]
[1761234271256,6.5801322,191.39,191.24,2.75]
[1761234272370,4.7027,191.34,191.24,2.75]
[1761234273561,4.7022,191.36,191.24,2.75]
[1761234273762,6.5801322,191.39,191.24,2.75]
[1761234273975,15.1,191.4,191.24,2.75]
[1761234274272,15.1,191.4,191.28,2.75]
[1761234274569,6.5801322,191.43,191.28,2.75]
[1761234274961,4.7014,191.4,191.31,4.7034]
[1761234275278,23.8,191.43,191.32,2.75]
[1761234275865,4.7012,191.4,191.32,2.75]
[1761234276770,4.7012,191.4,191.24,2.75]
[1761234277559,4.7012,191.4,191.29,2.75]
[1761234277762,4.7017,191.38,191.29,2.75]
[1761234280674,4.7022,191.36,191.26,2.75]
[1761234281376,4.7022,191.36,191.28,2.75]
[1761234281870,34.48,191.41,191.28,2.75]
[1761234281871,4.7017,191.38,191.28,2.75]
[1761234282075,4.7017,191.38,191.3,2.75]
[1761234282977,4.7012,191.4,191.3,2.75]
[1761234283177,34.48,191.41,191.3,2.75]
[1761234283976,4.7016,191.39,191.3,2.75]
[1761234285083,4.7019,191.38,191.3,2.75]
[1761234285380,6.5801322,191.43,191.3,2.75]
[1761234286783,4.7022,191.36,191.3,2.75]
[1761234286981,6.5801322,191.34,191.24,2.75]
[1761234287583,4.7039,191.3,191.24,2.75]
[1761234288578,4.7039,191.3,191.21,4.7056]
[1761234288782,4.7039,191.3,191.21,7.4556]
[1761234289185,6.5801322,191.34,191.21,2.75]
[1761234289585,44.26,191.33,191.21,2.75]
[1761234290183,4.704,191.29,191.21,2.75]
[1761234290387,44.26,191.33,191.21,2.75]
[1761234290878,44.26,191.33,191.17,2.75]
[1761234290879,4.7048,191.26,191.17,2.75]
[1761234291085,6.5801322,191.3,191.17,2.75]
[1761234291285,4.7052,191.24,191.17,2.75]
[1761234292378,4.7056,191.22,191.17,2.75]
[1761234292582,4.7056,191.22,191.13,7.4578]
[1761234293087,4.7056,191.22,191.14,2.75]
[1761234293588,6.5801322,191.3,191.15,2.75]
[1761234294283,6.5801322,191.3,191.09,2.75]
[1761234295181,4.7043,191.28,191.18,2.75]
[1761234295489,6.5801322,191.3,191.18,2.75]
[1761234296482,4.7046,191.27,191.18,7.4564]
[1761234296680,4.7046,191.27,191.19,2.75]
[1761234297791,6.5801322,191.3,191.19,2.75]
[1761234298683,6.5801322,191.3,191.15,2.75]
[1761234299079,4.7053,191.24,191.16,2.78]
[1761234300188,6.5801322,191.26,191.12,2.78]
[1761234301187,6.5801322,191.22,191.06,2.78]
[1761234301584,6.5801322,191.18,191.06,2.78]
[1761234303185,17.42,191.22,190.91,12.48510292]
[1761234303186,6.5801322,191.14,190.99,2.78]
[1761234303584,4.7088,191.1,191.0,2.78]
[1761234304088,22.23306805,191.14,191.0,2.78]
[1761234304290,22.23306805,191.14,190.94,2.78]
[1761234304291,6.5801322,191.1,190.94,2.78]
[1761234304588,29.5401322,191.1,190.94,2.78]
[1761234304793,4.7091,191.08,190.97,2.78]
[1761234304990,6.5801322,191.14,190.97,2.78]
[1761234305191,6.5801322,191.18,190.96,6.5801322]
[1761234305398,6.5801322,191.22,191.01,2.78]
[1761234305695,4.7068,191.17,191.07,2.78]
[1761234306090,6.5801322,191.18,190.98,62.0]
[1761234306395,6.5801322,191.18,191.02,2.78]
[1761234306697,4.7076,191.14,191.02,2.78]
[1761234307293,20.84,191.21,191.02,2.78]
[1761234308097,4.7063,191.2,191.1,2.78]
[1761234308693,4.7056,191.22,191.12,2.78]
[1761234308893,50.9601322,191.26,191.12,2.78]
[1761234309098,6.5801322,191.26,191.12,2.78]
[1761234309304,6.5801322,191.14,191.01,2.78]
[1761234309888,4.7073,191.15,191.03,2.78]
[1761234310093,34.3401322,191.18,191.03,2.78]
[1761234310593,4.708,191.13,191.04,4.7099]
[1761234310794,4.708,191.13,191.04,7.4899]
[1761234311291,4.01681686,191.16,191.06,4.7095]
[1761234311292,8.72401686,191.16,191.06,4.7095]
[1761234311498,4.7072,191.16,191.07,2.78]
[1761234311696,4.01681686,191.2,191.07,2.78]
[1761234312695,4.01681686,191.2,191.09,2.78]
[1761234313204,4.01681686,191.2,191.03,2.78]
[1761234313404,4.01681686,191.2,191.07,2.78]
[1761234313596,4.7073,191.15,191.07,2.78]
[1761234314003,4.01681686,191.16,191.07,2.78]
[1761234316002,8.72411686,191.16,191.07,2.78]
[1761234316304,4.7073,191.16,191.07,2.78]
[1761234316508,4.01681686,191.2,191.07,2.78]
[1761234317613,4.7066,191.18,191.08,4.7088]
[1761234317811,4.01681686,191.2,191.08,4.7088]
[1761234318115,4.01681686,191.16,190.99,2.78]
[1761234318623,4.7075,191.15,191.06,2.78]
[1761234318805,4.01681686,191.16,191.06,2.78]
[1761234319007,8.72411686,191.16,191.07,2.78]
[1761234320210,4.7066,191.18,191.03,2.78]
[1761234320410,4.01681686,191.2,191.03,2.78]
[1761234320912,4.01681686,191.16,191.03,2.78]
[1761234321417,4.7078,191.13,191.04,2.78]
[1761234321902,4.01681686,191.16,191.04,2.78]
[1761234322305,4.01681686,191.16,190.99,2.78]
[1761234323213,8.72401686,191.16,191.07,4.7091]
[1761234323415,4.01681686,191.2,191.07,2.78]
[1761234323912,4.7058,191.22,191.13,2.78]
[1761234324309,4.7048,191.26,191.17,4.7067]
[1761234324707,4.01681686,191.28,191.16,2.78]
[1761234325310,4.7051,191.25,191.16,7.4869]
[1761234325718,4.01681686,191.28,191.11,2.78]
[1761234326113,4.01681686,191.28,191.1,4.01681686]
[1761234326114,4.7049,191.25,191.15,2.66]
[1761234326314,4.01681686,191.29,191.15,2.66]
[1761234326712,4.01681686,191.25,191.15,2.66]
[1761234327613,4.7058,191.22,191.15,2.66]
[1761234328619,4.7061,191.2,191.11,4.7083]
[1761234328919,4.01681686,191.25,191.12,2.63]
[1761234329618,4.7057,191.22,191.13,4.7076]
[1761234329921,4.01681686,191.25,191.14,2.63]
[1761234330316,4.7058,191.22,191.14,7.3374]
[1761234330822,4.706,191.21,191.14,2.63]
[1761234331519,4.7054,191.23,191.14,2.63]
[1761234331914,4.7049,191.25,191.17,4.7067]
[1761234332115,4.01681686,191.3,191.14,2.63]
[1761234332315,4.01681686,191.31,191.14,2.63]
[1761234333718,4.01681686,191.31,191.2,4.7059]
[1761234333921,4.01681686,191.31,191.2,7.3359]
[1761234335025,4.7045,191.27,191.2,7.3359]
[1761234335427,4.7045,191.27,191.21,2.63]
[1761234336116,4.01681686,191.32,191.21,2.63]
[1761234336316,4.01681686,191.36,191.21,2.63]
[1761234336624,4.01681686,191.36,191.24,2.63]
[1761234337725,4.7034,191.31,191.24,2.63]
[1761234337920,4.01681686,191.36,191.24,2.63]
[1761234338527,4.7033,191.32,191.24,7.335]
[1761234338727,4.7033,191.32,191.24,2.63]
[1761234339027,8.71941686,191.35,191.26,4.7045]
[1761234339330,4.01681686,191.35,191.24,2.63]
[1761234339718,4.7033,191.32,191.24,7.335]
[1761234343228,4.7033,191.32,191.25,7.3347]
[1761234344425,4.7027,191.34,191.26,7.3344]
[1761234344631,4.01681686,191.35,191.26,7.3344]
[1761234344824,4.01681686,191.35,191.26,2.63]
[1761234345727,4.01681686,191.35,191.22,2.63]
[1761234346028,4.7033,191.32,191.25,4.7047]
[1761234346228,4.7033,191.32,191.25,7.3347]
[1761234346922,4.7033,191.32,191.26,2.63]
[1761234347623,4.7025,191.35,191.27,2.63]
[1761234348723,2.08904169,191.35,191.28,9.93658232]
[1761234348928,48.63681686,191.39,191.29,5.23258232]
[1761234349226,150.56,191.44,191.19,4.01681686]
[1761234349227,48.51681686,191.42,191.3,7.86258232]
[1761234349427,48.51681686,191.42,191.31,5.23258232]
[1761234349628,48.51681686,191.42,191.32,5.23258232]
[1761234349828,48.51681686,191.42,191.33,5.23258232]
[1761234350031,48.51681686,191.42,191.34,5.23258232]
[1761234350237,48.51681686,191.42,191.35,5.23258232]
[1761234350535,48.51681686,191.42,191.36,5.23258232]
[1761234350735,48.51681686,191.42,191.37,5.23258232]
[1761234350936,48.51681686,191.42,191.38,5.23258232]
[1761234351135,48.51681686,191.42,191.39,5.23258232]
[1761234351329,48.51681686,191.42,191.29,2.63]
[1761234352132,4.7025,191.35,191.29,2.63]
[1761234353030,4.702,191.37,191.29,2.63]
[1761234353338,48.51681686,191.42,191.29,2.63]
[1761234353536,4.7028,191.34,191.21,4.01681686]
[1761234353834,48.49681686,191.34,191.23,2.63]
[1761234354340,4.7042,191.28,191.23,2.63]
[1761234354538,48.49681686,191.34,191.23,2.63]
[1761234355332,48.49681686,191.34,191.2,4.7059]
[1761234355529,48.49681686,191.34,191.2,7.3359]
[1761234355938,4.01681686,191.26,191.16,2.63]
[1761234356142,44.46,191.25,191.16,2.63]
[1761234356444,4.01681686,191.3,191.16,2.63]
[1761234357630,4.7039,191.29,191.2,2.63]
[1761234357830,44.48,191.31,191.2,2.63]
[1761234358742,4.7039,191.29,191.2,2.63]
[1761234358936,4.01681686,191.28,191.2,2.63]
[1761234359135,4.7046,191.27,191.2,2.63]
[1761234360936,4.01681686,191.28,191.16,7.477]
[1761234361539,44.48,191.31,191.16,2.77]
[1761234361540,4.01681686,191.24,191.16,2.77]
[1761234362034,4.7049,191.25,191.18,2.77]
[1761234362743,4.7045,191.27,191.18,2.77]
[1761234363244,44.46,191.28,191.18,2.77]
[1761234363436,4.7048,191.26,191.19,4.76026813]
[1761234363639,48.49681686,191.29,191.2,4.76026813]
[1761234363836,48.49681686,191.29,191.21,4.76026813]
[1761234364037,48.49681686,191.29,191.22,4.76026813]
[1761234364343,4.705,191.25,191.23,4.76026813]
[1761234364532,4.01681686,191.24,191.15,4.7073]
[1761234364735,4.01681686,191.24,191.17,2.77]
[1761234364937,4.7049,191.25,191.19,2.77]
[1761234365136,4.7049,191.25,191.21,2.77]
[1761234365444,4.01681686,191.28,191.22,4.66178902]
[1761234365445,4.7043,191.28,191.22,4.66178902]
[1761234365636,4.7043,191.28,191.21,2.77]
[1761234365637,4.7043,191.28,191.23,4.66178902]
[1761234365839,4.7043,191.28,191.24,4.66178902]
[1761234366038,4.7043,191.28,191.23,2.77]
[1761234366039,4.7043,191.28,191.25,4.66178902]
[1761234366238,4.7043,191.28,191.26,4.66178902]
[1761234366442,4.01681686,191.34,191.27,4.66178902]
[1761234366636,4.01681686,191.34,191.28,4.66178902]
[1761234366834,8.71951686,191.34,191.29,4.66178902]
[1761234367039,44.48,191.39,191.31,2.77]
[1761234367237,44.48,191.39,191.32,7.43178902]
[1761234367443,44.48,191.39,191.33,12.13458902]
[1761234367645,44.48,191.39,191.35,2.77]
[1761234367948,44.48,191.39,191.36,4.66178902]
[1761234368150,44.48,191.39,191.37,7.43178902]
[1761234368339,4.7775512,191.48,191.38,4.66178902]
[1761234368340,44.48,191.45,191.38,4.66178902]
[1761234368538,44.48,191.45,191.39,4.66178902]
[1761234368748,4.7775512,191.55,191.41,2.77]
[1761234368940,44.5,191.54,191.42,7.43178902]
[1761234369142,44.5,191.53,191.43,7.43178902]
[1761234369346,44.5,191.53,191.44,4.66178902]
[1761234369649,44.5,191.53,191.45,4.66178902]
[1761234369843,44.5,191.53,191.43,2.77]
[1761234369844,44.5,191.53,191.46,4.66178902]
[1761234370044,44.5,191.53,191.47,4.66178902]
[1761234370241,44.5,191.53,191.48,4.66178902]
[1761234370440,44.5,191.53,191.49,4.66178902]
[1761234370753,44.5,191.53,191.5,4.66178902]
[1761234370941,44.5,191.53,191.51,4.66178902]
[1761234371138,44.48,191.55,191.52,4.66178902]
[1761234371445,4.6978,191.54,191.53,8.902e-05]
[1761234372048,44.48,191.55,191.53,8.902e-05]
[1761234372248,44.48,191.55,191.46,2.77]
[1761234373342,51.06463895,191.55,191.41,2.77]
[1761234375054,4.6985,191.51,191.41,2.77]
[1761234375651,4.6979,191.54,191.41,2.77]
[1761234376249,15.39154446,191.6,191.43,2.77]
[1761234376250,4.6973,191.57,191.43,2.77]
[1761234376450,49.1373,191.57,191.43,2.77]
[1761234376751,49.1373,191.57,191.44,2.77]
[1761234377448,6.58463895,191.54,191.4,2.77]
[1761234377848,4.6985,191.52,191.4,2.77]
[1761234378162,4.6985,191.52,191.33,6.58463895]
[1761234378163,4.6985,191.52,191.41,7.4709]
[1761234379056,4.6985,191.52,191.42,2.77]
[1761234379451,4.6985,191.52,191.44,2.77]
[1761234383248,4.6985,191.52,191.45,4.54407278]
[1761234383454,4.6985,191.52,191.46,4.54407278]
[1761234383656,4.6985,191.52,191.47,4.54407278]
[1761234383961,4.6985,191.52,191.48,4.54407278]
[1761234384153,4.6985,191.52,191.49,4.54407278]
[1761234384355,4.6985,191.52,191.5,4.54407278]
[1761234384558,4.6985,191.52,191.51,4.54407278]